[Event "Titled Tuesday Blitz March 01 Early 2022"]
[White "Goltsev, Dmitry"]
[Black "Rodchenkov, Vitaly"]
[WhiteFideId "24176710"]
[BlackFideId "4152964"]
[WhiteElo "2273"]
[BlackElo "2337"]
[Result "0-1"]
[Round "01"]
[TimeControl "180+1"]
[Date "2022.03.01"]
[WhiteClock "0:00:05"]
[BlackClock "0:00:17"]

1. e4 {[%clk 0:02:56]}  c5 {[%clk 0:02:59]} 2. Nf3 {[%clk 0:02:56]}  d6 {[%clk 0:02:59]} 3. d4 {[%clk 0:02:56]}  cxd4 {[%clk 0:02:59]} 4. Nxd4 {[%clk 0:02:57]}  Nf6 {[%clk 0:02:58]} 5. Nc3 {[%clk 0:02:57]}  a6 {[%clk 0:02:58]} 6. Qd3 {[%clk 0:02:57]}  Nbd7 {[%clk 0:02:51]} 7. Bf4 {[%clk 0:02:53]}  e5 {[%clk 0:02:44]} 8. Nf5 {[%clk 0:02:50]}  exf4 {[%clk 0:02:42]} 9. Nxd6+ {[%clk 0:02:51]}  Bxd6 {[%clk 0:02:42]} 10. Qxd6 {[%clk 0:02:52]}  Qe7 {[%clk 0:02:40]} 11. Qxf4 {[%clk 0:02:51]}  O-O {[%clk 0:02:39]} 12. O-O-O {[%clk 0:02:51]}  Re8 {[%clk 0:02:37]} 13. f3 {[%clk 0:02:51]}  Ne5 {[%clk 0:02:36]} 14. g4 {[%clk 0:02:48]}  Ng6 {[%clk 0:02:34]} 15. Qe3 {[%clk 0:02:46]}  Qe5 {[%clk 0:02:33]} 16. Kb1 {[%clk 0:02:45]}  Be6 {[%clk 0:02:33]} 17. h4 {[%clk 0:02:43]}  Qf4 {[%clk 0:02:32]} 18. Qe2 {[%clk 0:02:29]}  Ne5 {[%clk 0:02:29]} 19. Bg2 {[%clk 0:02:27]}  Bc4 {[%clk 0:02:27]} 20. Qd2 {[%clk 0:02:26]}  Qxd2 {[%clk 0:02:24]} 21. Rxd2 {[%clk 0:02:27]}  Rad8 {[%clk 0:02:23]} 22. Rhd1 {[%clk 0:02:27]}  Nc6 {[%clk 0:02:19]} 23. b3 {[%clk 0:02:22]}  Be6 {[%clk 0:02:17]} 24. Na4 {[%clk 0:02:23]}  Rxd2 {[%clk 0:02:16]} 25. Rxd2 {[%clk 0:02:21]}  Rd8 {[%clk 0:02:16]} 26. Kc1 {[%clk 0:02:19]}  Kf8 {[%clk 0:02:15]} 27. Nc5 {[%clk 0:02:17]}  Bc8 {[%clk 0:02:15]} 28. a4 {[%clk 0:02:12]}  Ke7 {[%clk 0:02:12]} 29. Bf1 {[%clk 0:02:06]}  Rxd2 {[%clk 0:02:07]} 30. Kxd2 {[%clk 0:02:07]}  a5 {[%clk 0:02:06]} 31. Ke3 {[%clk 0:02:01]}  h6 {[%clk 0:02:03]} 32. Nd3 {[%clk 0:01:47]}  g5 {[%clk 0:01:56]} 33. hxg5 {[%clk 0:01:35]}  hxg5 {[%clk 0:01:56]} 34. Be2 {[%clk 0:01:30]}  Kd6 {[%clk 0:01:55]} 35. f4 {[%clk 0:01:28]}  Nxg4+ {[%clk 0:01:49]} 36. Bxg4 {[%clk 0:01:24]}  Bxg4 {[%clk 0:01:49]} 37. fxg5 {[%clk 0:01:25]}  Nb4 {[%clk 0:01:44]} 38. Ne1 {[%clk 0:01:16]}  Be6 {[%clk 0:01:37]} 39. Kf4 {[%clk 0:01:05]}  b6 {[%clk 0:01:33]} 40. Ke3 {[%clk 0:00:51]}  Kc5 {[%clk 0:01:29]} 41. c3 {[%clk 0:00:44]}  Nc6 {[%clk 0:01:28]} 42. Nd3+ {[%clk 0:00:44]}  Kd6 {[%clk 0:01:27]} 43. Nc1 {[%clk 0:00:45]}  Ne5 {[%clk 0:01:21]} 44. Kf4 {[%clk 0:00:40]}  Ng6+ {[%clk 0:01:20]} 45. Ke3 {[%clk 0:00:39]}  Ne5 {[%clk 0:01:04]} 46. Kf4 {[%clk 0:00:37]}  Nd7 {[%clk 0:01:04]} 47. b4 {[%clk 0:00:35]}  Ne5 {[%clk 0:00:57]} 48. Ke3 {[%clk 0:00:32]}  Nc4+ {[%clk 0:00:54]} 49. Kd4 {[%clk 0:00:30]}  Nb2 {[%clk 0:00:54]} 50. e5+ {[%clk 0:00:26]}  Kc6 {[%clk 0:00:51]} 51. Ne2 {[%clk 0:00:15]}  Nxa4 {[%clk 0:00:48]} 52. Nf4 {[%clk 0:00:14]}  Kd7 {[%clk 0:00:31]} 53. g6 {[%clk 0:00:10]}  fxg6 {[%clk 0:00:30]} 54. Nxg6 {[%clk 0:00:11]}  axb4 {[%clk 0:00:28]} 55. cxb4 {[%clk 0:00:12]}  b5 {[%clk 0:00:27]} 56. Nf8+ {[%clk 0:00:11]}  Ke7 {[%clk 0:00:26]} 57. Ng6+ {[%clk 0:00:12]}  Kf7 {[%clk 0:00:22]} 58. Nf4 {[%clk 0:00:13]}  Bc4 {[%clk 0:00:21]} 59. Ng2 {[%clk 0:00:10]}  Ke6 {[%clk 0:00:20]} 60. Nf4+ {[%clk 0:00:10]}  Kd7 {[%clk 0:00:20]} 61. Ng2 {[%clk 0:00:11]}  Kc6 {[%clk 0:00:20]} 62. Nf4 {[%clk 0:00:12]}  Nb6 {[%clk 0:00:20]} 63. Ng6 {[%clk 0:00:10]}  Nd5 {[%clk 0:00:19]} 64. e6 {[%clk 0:00:09]}  Kd6 {[%clk 0:00:18]} 65. e7 {[%clk 0:00:09]}  Nxe7 {[%clk 0:00:18]} 66. Nf4 {[%clk 0:00:08]}  Nd5 {[%clk 0:00:18]} 67. Nh5 {[%clk 0:00:05]}  Nxb4 {[%clk 0:00:18]} 68. Ng3 {[%clk 0:00:05]}  Nc6+ {[%clk 0:00:17]} 69. Kc3 {[%clk 0:00:06]}  Kd5 {[%clk 0:00:18]} 70. Nf5 {[%clk 0:00:06]}  b4+ {[%clk 0:00:18]} 71. Kb2 {[%clk 0:00:06]}  Nd4 {[%clk 0:00:18]} 72. Ne3+ {[%clk 0:00:06]}  Kc5 {[%clk 0:00:18]} 73. Ng4 {[%clk 0:00:06]}  Bd5 {[%clk 0:00:17]} 74. Ne5 {[%clk 0:00:06]}  Nc6 {[%clk 0:00:16]} 75. Nd3+ {[%clk 0:00:06]}  Kc4 {[%clk 0:00:17]} 76. Ne1 {[%clk 0:00:04]}  Be4 {[%clk 0:00:16]} 77. Ka1 {[%clk 0:00:03]}  Nd4 {[%clk 0:00:16]} 78. Kb2 {[%clk 0:00:04]}  Nb5 {[%clk 0:00:16]} 79. Ka1 {[%clk 0:00:04]}  Kc3 {[%clk 0:00:16]} 80. Ka2 {[%clk 0:00:04]}  b3+ {[%clk 0:00:17]} 81. Ka1 {[%clk 0:00:04]}  b2+ {[%clk 0:00:17]} 82. Ka2 {[%clk 0:00:05]}  b1=Q# {[%clk 0:00:17]} 0-1


[Site "https://www.chess.com"]

[Event "Titled Tuesday Blitz March 01 Early 2022"]
[White "Gormally, Daniel W"]
[Black "Jakubowska, Anna"]
[WhiteFideId "406465"]
[BlackFideId "1121952"]
[WhiteElo "2543"]
[BlackElo "1924"]
[Result "1-0"]
[Round "01"]
[TimeControl "180+1"]
[Date "2022.03.01"]
[WhiteClock "0:00:19"]
[BlackClock "0:00:13"]

1. Nf3 {[%clk 0:02:54]}  d5 {[%clk 0:02:59]} 2. c4 {[%clk 0:02:53]}  c6 {[%clk 0:02:59]} 3. b3 {[%clk 0:02:52]}  Nf6 {[%clk 0:02:59]} 4. Bb2 {[%clk 0:02:52]}  Bf5 {[%clk 0:02:57]} 5. e3 {[%clk 0:02:51]}  h6 {[%clk 0:02:56]} 6. Be2 {[%clk 0:02:51]}  e6 {[%clk 0:02:56]} 7. O-O {[%clk 0:02:51]}  Be7 {[%clk 0:02:55]} 8. Nc3 {[%clk 0:02:35]}  Nbd7 {[%clk 0:02:52]} 9. d3 {[%clk 0:02:34]}  O-O {[%clk 0:02:52]} 10. Rc1 {[%clk 0:02:33]}  a5 {[%clk 0:02:49]} 11. Nd4 {[%clk 0:02:29]}  Bg6 {[%clk 0:02:48]} 12. f4 {[%clk 0:02:26]}  e5 {[%clk 0:02:38]} 13. fxe5 {[%clk 0:02:23]}  Nxe5 {[%clk 0:02:38]} 14. Nf5 {[%clk 0:02:23]}  Bxf5 {[%clk 0:02:23]} 15. Rxf5 {[%clk 0:02:20]}  Ng6 {[%clk 0:02:24]} 16. cxd5 {[%clk 0:02:16]}  cxd5 {[%clk 0:02:19]} 17. Qf1 {[%clk 0:01:25]}  Bc5 {[%clk 0:02:15]} 18. Nd1 {[%clk 0:01:16]}  Be7 {[%clk 0:01:57]} 19. g3 {[%clk 0:01:15]}  Qd6 {[%clk 0:01:47]} 20. Bf3 {[%clk 0:01:01]}  Qe6 {[%clk 0:01:42]} 21. Bg2 {[%clk 0:00:57]}  Rfd8 {[%clk 0:01:37]} 22. Bd4 {[%clk 0:00:51]}  a4 {[%clk 0:01:26]} 23. b4 {[%clk 0:00:50]}  Ne8 {[%clk 0:01:20]} 24. a3 {[%clk 0:00:41]}  Bf6 {[%clk 0:01:15]} 25. Bxf6 {[%clk 0:00:36]}  Nxf6 {[%clk 0:01:15]} 26. Rc7 {[%clk 0:00:36]}  Qb6 {[%clk 0:01:07]} 27. Rc5 {[%clk 0:00:34]}  Ne7 {[%clk 0:00:59]} 28. Rf4 {[%clk 0:00:30]}  Qe6 {[%clk 0:00:59]} 29. Qf2 {[%clk 0:00:29]}  Ng6 {[%clk 0:00:57]} 30. Rf5 {[%clk 0:00:28]}  Ne7 {[%clk 0:00:57]} 31. Rf4 {[%clk 0:00:26]}  Ng6 {[%clk 0:00:58]} 32. Rd4 {[%clk 0:00:27]}  b6 {[%clk 0:00:39]} 33. Rc2 {[%clk 0:00:26]}  Ng4 {[%clk 0:00:35]} 34. Qe2 {[%clk 0:00:24]}  Nf6 {[%clk 0:00:32]} 35. Nc3 {[%clk 0:00:23]}  h5 {[%clk 0:00:24]} 36. Nb5 {[%clk 0:00:23]}  Rac8 {[%clk 0:00:22]} 37. h3 {[%clk 0:00:20]}  Rxc2 {[%clk 0:00:21]} 38. Qxc2 {[%clk 0:00:21]}  Qxe3+ {[%clk 0:00:21]} 39. Qf2 {[%clk 0:00:21]}  Qxf2+ {[%clk 0:00:17]} 40. Kxf2 {[%clk 0:00:21]}  Ne5 {[%clk 0:00:17]} 41. Nc3 {[%clk 0:00:19]}  Nc6 {[%clk 0:00:17]} 42. Rf4 {[%clk 0:00:19]}  Ne7 {[%clk 0:00:17]} 43. Nxa4 {[%clk 0:00:19]}  Ra8 {[%clk 0:00:16]} 44. b5 {[%clk 0:00:20]}  g5 {[%clk 0:00:14]} 45. Rb4 {[%clk 0:00:19]}  d4 {[%clk 0:00:13]} 46. Bxa8 {[%clk 0:00:19]}  Kg7 {[%clk 0:00:13]} 47. Rxd4 {[%clk 0:00:19]} 1-0


[Site "https://www.chess.com"]

[Event "Titled Tuesday Blitz March 01 Early 2022"]
[White "Gracia Alvarez, Gerardo Antonio"]
[Black "Martinez Alcantara, Jose Eduardo"]
[WhiteFideId "5109124"]
[BlackFideId "3805662"]
[WhiteElo "2139"]
[BlackElo "2690"]
[Result "0-1"]
[Round "01"]
[TimeControl "180+1"]
[Date "2022.03.01"]
[WhiteClock "0:00:03"]
[BlackClock "0:00:18"]

1. c4 {[%clk 0:03:00]}  c5 {[%clk 0:02:57]} 2. Nc3 {[%clk 0:03:00]}  Nc6 {[%clk 0:02:58]} 3. g3 {[%clk 0:03:00]}  g6 {[%clk 0:02:58]} 4. Bg2 {[%clk 0:03:01]}  Bg7 {[%clk 0:02:59]} 5. e3 {[%clk 0:03:00]}  d6 {[%clk 0:03:00]} 6. Nge2 {[%clk 0:03:00]}  e6 {[%clk 0:03:00]} 7. O-O {[%clk 0:02:58]}  Nge7 {[%clk 0:03:01]} 8. d4 {[%clk 0:02:57]}  O-O {[%clk 0:03:01]} 9. b3 {[%clk 0:02:44]}  cxd4 {[%clk 0:03:00]} 10. Nxd4 {[%clk 0:02:40]}  d5 {[%clk 0:03:01]} 11. cxd5 {[%clk 0:02:33]}  exd5 {[%clk 0:03:00]} 12. Bb2 {[%clk 0:02:29]}  Nxd4 {[%clk 0:03:00]} 13. exd4 {[%clk 0:02:29]}  Be6 {[%clk 0:03:01]} 14. Na4 {[%clk 0:02:26]}  b6 {[%clk 0:02:58]} 15. Rc1 {[%clk 0:02:21]}  Nf5 {[%clk 0:02:52]} 16. Qd3 {[%clk 0:02:09]}  Qd7 {[%clk 0:02:43]} 17. Rfd1 {[%clk 0:02:08]}  h5 {[%clk 0:02:33]} 18. h4 {[%clk 0:02:05]}  Rfe8 {[%clk 0:02:21]} 19. Bf3 {[%clk 0:02:04]}  Bf6 {[%clk 0:02:13]} 20. Bg2 {[%clk 0:01:58]}  Kg7 {[%clk 0:02:02]} 21. Qd2 {[%clk 0:01:46]}  Rac8 {[%clk 0:01:57]} 22. Qf4 {[%clk 0:01:43]}  Kg8 {[%clk 0:01:48]} 23. Nc3 {[%clk 0:01:29]}  Bg7 {[%clk 0:01:47]} 24. Qd2 {[%clk 0:00:54]}  Bh6 {[%clk 0:01:46]} 25. Qd3 {[%clk 0:00:50]}  Bxc1 {[%clk 0:01:44]} 26. Bxc1 {[%clk 0:00:51]}  f6 {[%clk 0:01:38]} 27. Bf4 {[%clk 0:00:51]}  Kg7 {[%clk 0:01:33]} 28. Nb5 {[%clk 0:00:50]}  a6 {[%clk 0:01:29]} 29. Nc3 {[%clk 0:00:50]}  b5 {[%clk 0:01:29]} 30. Ne2 {[%clk 0:00:50]}  Nd6 {[%clk 0:01:20]} 31. Bc1 {[%clk 0:00:46]}  Bf5 {[%clk 0:01:11]} 32. Qd2 {[%clk 0:00:45]}  Qf7 {[%clk 0:00:56]} 33. Qh6+ {[%clk 0:00:44]}  Kg8 {[%clk 0:00:56]} 34. Nf4 {[%clk 0:00:44]}  Ne4 {[%clk 0:00:56]} 35. g4 {[%clk 0:00:19]}  hxg4 {[%clk 0:00:53]} 36. h5 {[%clk 0:00:15]}  Qg7 {[%clk 0:00:52]} 37. Nxd5 {[%clk 0:00:11]}  Qxh6 {[%clk 0:00:46]} 38. Bxh6 {[%clk 0:00:12]}  Kf7 {[%clk 0:00:43]} 39. hxg6+ {[%clk 0:00:12]}  Bxg6 {[%clk 0:00:44]} 40. Be3 {[%clk 0:00:12]}  Bf5 {[%clk 0:00:39]} 41. Nf4 {[%clk 0:00:12]}  Nc3 {[%clk 0:00:37]} 42. Rc1 {[%clk 0:00:10]}  Be4 {[%clk 0:00:33]} 43. Bxe4 {[%clk 0:00:08]}  Nxe4 {[%clk 0:00:33]} 44. Re1 {[%clk 0:00:07]}  Ng5 {[%clk 0:00:19]} 45. Kg2 {[%clk 0:00:06]}  Rc2 {[%clk 0:00:19]} 46. Rf1 {[%clk 0:00:03]}  Rxe3 {[%clk 0:00:18]} 0-1


[Site "https://www.chess.com"]

[Event "Titled Tuesday Blitz March 01 Early 2022"]
[White "Grafil, Franz Robert"]
[Black "Kornyukov, Alexey"]
[WhiteFideId "5205298"]
[BlackFideId "4150457"]
[WhiteElo "2211"]
[BlackElo "2303"]
[Result "1-0"]
[Round "01"]
[TimeControl "180+1"]
[Date "2022.03.01"]
[WhiteClock "0:00:22"]
[BlackClock "0:01:40"]

1. d4 {[%clk 0:02:57]}  d5 {[%clk 0:02:59]} 2. c4 {[%clk 0:02:56]}  e6 {[%clk 0:02:59]} 3. Nf3 {[%clk 0:02:53]}  Be7 {[%clk 0:03:00]} 4. g3 {[%clk 0:02:52]}  Nf6 {[%clk 0:03:00]} 5. Bg2 {[%clk 0:02:51]}  O-O {[%clk 0:02:59]} 6. O-O {[%clk 0:02:52]}  c5 {[%clk 0:02:59]} 7. cxd5 {[%clk 0:02:48]}  Nxd5 {[%clk 0:02:58]} 8. e4 {[%clk 0:02:46]}  Nf6 {[%clk 0:02:55]} 9. Nc3 {[%clk 0:02:46]}  cxd4 {[%clk 0:02:55]} 10. Nxd4 {[%clk 0:02:47]}  Bc5 {[%clk 0:02:52]} 11. Be3 {[%clk 0:02:43]}  Bxd4 {[%clk 0:02:51]} 12. Qxd4 {[%clk 0:02:36]}  Qxd4 {[%clk 0:02:49]} 13. Bxd4 {[%clk 0:02:37]}  Nc6 {[%clk 0:02:49]} 14. Bxf6 {[%clk 0:02:34]}  gxf6 {[%clk 0:02:49]} 15. Rfd1 {[%clk 0:02:35]}  b6 {[%clk 0:02:47]} 16. e5 {[%clk 0:02:33]}  Bb7 {[%clk 0:02:46]} 17. Rd7 {[%clk 0:02:30]}  Rab8 {[%clk 0:02:43]} 18. exf6 {[%clk 0:02:12]}  Rfd8 {[%clk 0:02:42]} 19. Rxb7 {[%clk 0:02:11]}  Rxb7 {[%clk 0:02:41]} 20. Bxc6 {[%clk 0:02:11]}  Rc7 {[%clk 0:02:41]} 21. Bf3 {[%clk 0:01:33]}  Rd2 {[%clk 0:02:39]} 22. Rd1 {[%clk 0:01:33]}  Rxd1+ {[%clk 0:02:37]} 23. Bxd1 {[%clk 0:01:05]}  Rd7 {[%clk 0:02:36]} 24. Bh5 {[%clk 0:00:35]}  Rd2 {[%clk 0:02:34]} 25. b3 {[%clk 0:00:35]}  Rc2 {[%clk 0:02:33]} 26. Nb5 {[%clk 0:00:35]}  Rxa2 {[%clk 0:02:24]} 27. Nd6 {[%clk 0:00:35]}  Rb2 {[%clk 0:02:23]} 28. Bxf7+ {[%clk 0:00:34]}  Kf8 {[%clk 0:02:22]} 29. Bxe6 {[%clk 0:00:35]}  Rd2 {[%clk 0:02:18]} 30. Ne4 {[%clk 0:00:30]}  Re2 {[%clk 0:02:17]} 31. Ng5 {[%clk 0:00:31]}  Rxe6 {[%clk 0:01:57]} 32. Nxe6+ {[%clk 0:00:32]}  Kf7 {[%clk 0:01:57]} 33. Nc7 {[%clk 0:00:30]}  Kxf6 {[%clk 0:01:57]} 34. f4 {[%clk 0:00:31]}  Ke7 {[%clk 0:01:55]} 35. f5 {[%clk 0:00:28]}  a5 {[%clk 0:01:54]} 36. g4 {[%clk 0:00:27]}  Kd6 {[%clk 0:01:54]} 37. f6 {[%clk 0:00:23]}  Kd7 {[%clk 0:01:53]} 38. g5 {[%clk 0:00:22]}  Kd6 {[%clk 0:01:51]} 39. h4 {[%clk 0:00:22]}  b5 {[%clk 0:01:46]} 40. Nxb5+ {[%clk 0:00:21]}  Ke6 {[%clk 0:01:46]} 41. h5 {[%clk 0:00:21]}  h6 {[%clk 0:01:45]} 42. g6 {[%clk 0:00:19]}  Kxf6 {[%clk 0:01:44]} 43. Nd4 {[%clk 0:00:19]}  Kg7 {[%clk 0:01:41]} 44. Nc6 {[%clk 0:00:19]}  Kf6 {[%clk 0:01:39]} 45. Nxa5 {[%clk 0:00:19]}  Kg7 {[%clk 0:01:39]} 46. b4 {[%clk 0:00:20]}  Kf8 {[%clk 0:01:39]} 47. b5 {[%clk 0:00:21]}  Ke7 {[%clk 0:01:40]} 48. b6 {[%clk 0:00:22]}  Kd7 {[%clk 0:01:40]} 49. g7 {[%clk 0:00:22]}  Kd6 {[%clk 0:01:40]} 50. g8=Q {[%clk 0:00:23]}  Kc5 {[%clk 0:01:40]} 51. b7 {[%clk 0:00:22]} 1-0


[Site "https://www.chess.com"]

[Event "Titled Tuesday Blitz March 01 Early 2022"]
[White "Guseva, Marina"]
[Black "Kezin, Roman"]
[WhiteFideId "4149351"]
[BlackFideId "24124621"]
[WhiteElo "2232"]
[BlackElo "2509"]
[Result "0-1"]
[Round "01"]
[TimeControl "180+1"]
[Date "2022.03.01"]
[WhiteClock "0:00:01"]
[BlackClock "0:00:05"]

1. d4 {[%clk 0:02:58]}  e6 {[%clk 0:02:55]} 2. Nf3 {[%clk 0:02:57]}  f5 {[%clk 0:02:54]} 3. g3 {[%clk 0:02:54]}  Nf6 {[%clk 0:02:55]} 4. Bg2 {[%clk 0:02:53]}  b6 {[%clk 0:02:55]} 5. O-O {[%clk 0:02:52]}  Bb7 {[%clk 0:02:56]} 6. c4 {[%clk 0:02:52]}  Be7 {[%clk 0:02:55]} 7. Nc3 {[%clk 0:02:51]}  O-O {[%clk 0:02:55]} 8. d5 {[%clk 0:02:50]}  a5 {[%clk 0:02:55]} 9. Nd4 {[%clk 0:02:47]}  Qc8 {[%clk 0:02:52]} 10. b3 {[%clk 0:02:42]}  Na6 {[%clk 0:02:51]} 11. a3 {[%clk 0:02:41]}  g6 {[%clk 0:02:49]} 12. Bb2 {[%clk 0:02:39]}  e5 {[%clk 0:02:48]} 13. Ndb5 {[%clk 0:02:38]}  c6 {[%clk 0:02:44]} 14. dxc6 {[%clk 0:02:35]}  dxc6 {[%clk 0:02:43]} 15. Nd6 {[%clk 0:02:34]}  Qc7 {[%clk 0:02:44]} 16. Nxb7 {[%clk 0:02:24]}  Qxb7 {[%clk 0:02:45]} 17. Nb5 {[%clk 0:02:10]}  Rad8 {[%clk 0:02:41]} 18. Qc2 {[%clk 0:02:03]}  e4 {[%clk 0:02:29]} 19. Nd4 {[%clk 0:01:59]}  Nc7 {[%clk 0:02:29]} 20. Rad1 {[%clk 0:01:49]}  Rd7 {[%clk 0:02:27]} 21. e3 {[%clk 0:01:47]}  Rfd8 {[%clk 0:02:27]} 22. h3 {[%clk 0:01:34]}  c5 {[%clk 0:02:13]} 23. Ne2 {[%clk 0:01:29]}  Ne6 {[%clk 0:02:14]} 24. g4 {[%clk 0:01:15]}  fxg4 {[%clk 0:02:07]} 25. hxg4 {[%clk 0:01:08]}  Ng5 {[%clk 0:02:07]} 26. Ng3 {[%clk 0:00:48]}  Nf3+ {[%clk 0:00:53]} 27. Bxf3 {[%clk 0:00:42]}  exf3 {[%clk 0:00:54]} 28. Rxd7 {[%clk 0:00:37]}  Qxd7 {[%clk 0:00:53]} 29. Bxf6 {[%clk 0:00:34]}  Bxf6 {[%clk 0:00:46]} 30. Qe4 {[%clk 0:00:33]}  Rf8 {[%clk 0:00:41]} 31. Qxf3 {[%clk 0:00:31]}  Bb2 {[%clk 0:00:38]} 32. Rd1 {[%clk 0:00:26]}  Qc7 {[%clk 0:00:24]} 33. Qd5+ {[%clk 0:00:22]}  Kh8 {[%clk 0:00:25]} 34. a4 {[%clk 0:00:21]}  Qe7 {[%clk 0:00:21]} 35. Kg2 {[%clk 0:00:18]}  Be5 {[%clk 0:00:20]} 36. f4 {[%clk 0:00:17]}  Bg7 {[%clk 0:00:15]} 37. Qe4 {[%clk 0:00:15]}  Qf6 {[%clk 0:00:13]} 38. Rd3 {[%clk 0:00:08]}  Qf7 {[%clk 0:00:13]} 39. g5 {[%clk 0:00:08]}  Re8 {[%clk 0:00:13]} 40. Qd5 {[%clk 0:00:08]}  Qe7 {[%clk 0:00:13]} 41. Kf3 {[%clk 0:00:07]}  Bf8 {[%clk 0:00:11]} 42. e4 {[%clk 0:00:06]}  Bg7 {[%clk 0:00:11]} 43. e5 {[%clk 0:00:06]}  Rf8 {[%clk 0:00:11]} 44. Kg4 {[%clk 0:00:03]}  h5+ {[%clk 0:00:11]} 45. gxh6 {[%clk 0:00:02]}  Bxh6 {[%clk 0:00:11]} 46. Rf3 {[%clk 0:00:02]}  Rd8 {[%clk 0:00:07]} 47. Qc6 {[%clk 0:00:01]}  Kh7 {[%clk 0:00:05]} 0-1


[Site "https://www.chess.com"]

[Event "Titled Tuesday Blitz March 01 Early 2022"]
[White "Dronavalli, Harika"]
[Black "Kanyamarala, Trisha"]
[WhiteFideId "5015197"]
[BlackFideId "45004722"]
[WhiteElo "2382"]
[BlackElo "2002"]
[Result "0-1"]
[Round "01"]
[TimeControl "180+1"]
[Date "2022.03.01"]
[WhiteClock "0:01:21"]
[BlackClock "0:00:35"]

1. d4 {[%clk 0:02:55]}  Nf6 {[%clk 0:02:59]} 2. c4 {[%clk 0:02:54]}  e6 {[%clk 0:02:59]} 3. Nc3 {[%clk 0:02:53]}  Bb4 {[%clk 0:02:59]} 4. e3 {[%clk 0:02:53]}  O-O {[%clk 0:02:58]} 5. Bd2 {[%clk 0:02:53]}  d5 {[%clk 0:02:54]} 6. Nf3 {[%clk 0:02:50]}  b6 {[%clk 0:02:54]} 7. Rc1 {[%clk 0:02:48]}  Bb7 {[%clk 0:02:52]} 8. cxd5 {[%clk 0:02:48]}  exd5 {[%clk 0:02:51]} 9. Bd3 {[%clk 0:02:48]}  Nbd7 {[%clk 0:02:50]} 10. Ne5 {[%clk 0:02:49]}  c5 {[%clk 0:02:40]} 11. O-O {[%clk 0:02:40]}  Nxe5 {[%clk 0:02:32]} 12. dxe5 {[%clk 0:02:40]}  Ne4 {[%clk 0:02:30]} 13. Be1 {[%clk 0:02:19]}  Nxc3 {[%clk 0:02:15]} 14. bxc3 {[%clk 0:02:13]}  Ba3 {[%clk 0:02:12]} 15. Rb1 {[%clk 0:02:13]}  c4 {[%clk 0:02:06]} 16. Bc2 {[%clk 0:02:13]}  Bc5 {[%clk 0:02:04]} 17. Qh5 {[%clk 0:01:53]}  g6 {[%clk 0:02:02]} 18. Qh3 {[%clk 0:01:50]}  Qe7 {[%clk 0:01:41]} 19. f4 {[%clk 0:01:49]}  f6 {[%clk 0:01:37]} 20. Bh4 {[%clk 0:01:49]}  Rae8 {[%clk 0:01:03]} 21. Rbe1 {[%clk 0:01:46]}  Qg7 {[%clk 0:00:57]} 22. Bxf6 {[%clk 0:01:41]}  Rxf6 {[%clk 0:00:57]} 23. exf6 {[%clk 0:01:40]}  Qxf6 {[%clk 0:00:57]} 24. Qg3 {[%clk 0:01:34]}  Qxc3 {[%clk 0:00:47]} 25. Bxg6 {[%clk 0:01:31]}  Rxe3 {[%clk 0:00:46]} 26. Bd3+ {[%clk 0:01:30]}  Rxg3+ {[%clk 0:00:43]} 27. Kh1 {[%clk 0:01:28]}  cxd3 {[%clk 0:00:38]} 28. hxg3 {[%clk 0:01:25]}  d2 {[%clk 0:00:38]} 29. Rd1 {[%clk 0:01:24]}  Be3 {[%clk 0:00:37]} 30. f5 {[%clk 0:01:23]}  Ba6 {[%clk 0:00:36]} 31. Rf3 {[%clk 0:01:21]}  Be2 {[%clk 0:00:35]} 0-1


[Site "https://www.chess.com"]

[Event "Titled Tuesday Blitz March 01 Early 2022"]
[White "Harris, Ian"]
[Black "Yuan, Qingyu"]
[WhiteFideId "2020092"]
[BlackFideId "8609772"]
[WhiteElo "2361"]
[BlackElo "2359"]
[Result "0-1"]
[Round "01"]
[TimeControl "180+1"]
[Date "2022.03.01"]
[WhiteClock "0:00:21"]
[BlackClock "0:00:05"]

1. e4 {[%clk 0:03:00]}  c5 {[%clk 0:02:59]} 2. d4 {[%clk 0:02:58]}  cxd4 {[%clk 0:02:59]} 3. c3 {[%clk 0:02:56]}  dxc3 {[%clk 0:02:59]} 4. Nxc3 {[%clk 0:02:55]}  Nc6 {[%clk 0:03:00]} 5. Nf3 {[%clk 0:02:56]}  e6 {[%clk 0:03:01]} 6. Bc4 {[%clk 0:02:55]}  Bb4 {[%clk 0:02:59]} 7. O-O {[%clk 0:02:53]}  Nge7 {[%clk 0:03:00]} 8. Bg5 {[%clk 0:02:49]}  O-O {[%clk 0:02:51]} 9. e5 {[%clk 0:02:45]}  Qa5 {[%clk 0:02:43]} 10. Ne4 {[%clk 0:02:23]}  Ng6 {[%clk 0:02:29]} 11. a3 {[%clk 0:02:15]}  Be7 {[%clk 0:02:29]} 12. b4 {[%clk 0:02:10]}  Qd8 {[%clk 0:02:14]} 13. Bxe7 {[%clk 0:02:07]}  Qxe7 {[%clk 0:02:14]} 14. Qd6 {[%clk 0:02:02]}  Ncxe5 {[%clk 0:01:58]} 15. Nxe5 {[%clk 0:01:58]}  Qxd6 {[%clk 0:01:58]} 16. Nxd6 {[%clk 0:01:57]}  Nxe5 {[%clk 0:01:58]} 17. Bb3 {[%clk 0:01:55]}  f6 {[%clk 0:01:48]} 18. Rac1 {[%clk 0:01:51]}  Nf7 {[%clk 0:01:42]} 19. Rfd1 {[%clk 0:01:39]}  a5 {[%clk 0:01:06]} 20. b5 {[%clk 0:01:31]}  a4 {[%clk 0:01:03]} 21. Ba2 {[%clk 0:01:29]}  b6 {[%clk 0:00:39]} 22. Rc7 {[%clk 0:01:23]}  Nxd6 {[%clk 0:00:29]} 23. Rxd6 {[%clk 0:01:23]}  Rb8 {[%clk 0:00:25]} 24. f4 {[%clk 0:01:20]}  Re8 {[%clk 0:00:23]} 25. Kf2 {[%clk 0:01:16]}  Kf8 {[%clk 0:00:23]} 26. g4 {[%clk 0:01:10]}  Re7 {[%clk 0:00:21]} 27. Rc4 {[%clk 0:01:03]}  Ra8 {[%clk 0:00:14]} 28. Rxb6 {[%clk 0:01:00]}  d5 {[%clk 0:00:15]} 29. Rb4 {[%clk 0:00:57]}  Rb7 {[%clk 0:00:14]} 30. Rxb7 {[%clk 0:00:46]}  Bxb7 {[%clk 0:00:15]} 31. Ke3 {[%clk 0:00:47]}  Ke7 {[%clk 0:00:15]} 32. Kd4 {[%clk 0:00:47]}  Kd6 {[%clk 0:00:15]} 33. Bb1 {[%clk 0:00:45]}  e5+ {[%clk 0:00:16]} 34. fxe5+ {[%clk 0:00:45]}  fxe5+ {[%clk 0:00:17]} 35. Ke3 {[%clk 0:00:46]}  d4+ {[%clk 0:00:17]} 36. Kd2 {[%clk 0:00:45]}  Kc5 {[%clk 0:00:16]} 37. Bxh7 {[%clk 0:00:42]}  e4 {[%clk 0:00:16]} 38. Rb1 {[%clk 0:00:38]}  Rf8 {[%clk 0:00:10]} 39. Rc1+ {[%clk 0:00:38]}  Kd6 {[%clk 0:00:08]} 40. Ke2 {[%clk 0:00:35]}  e3 {[%clk 0:00:07]} 41. b6 {[%clk 0:00:32]}  Rf2+ {[%clk 0:00:07]} 42. Ke1 {[%clk 0:00:31]}  Ba6 {[%clk 0:00:05]} 43. Kd1 {[%clk 0:00:28]}  d3 {[%clk 0:00:03]} 44. Bxd3 {[%clk 0:00:24]}  Bxd3 {[%clk 0:00:04]} 45. Rc3 {[%clk 0:00:21]}  Rf1# {[%clk 0:00:05]} 0-1


[Site "https://www.chess.com"]